[Event "Late-Titled-Tuesday-Blitz-September-12-2023"]
[Site "Chess.com"]
[Date "2023.09.12"]
[Round "4"]
[White "zeitnot2006"]
[Black "IMSlavin"]
[Result "1-0"]
[WhiteElo "2754"]
[BlackElo "2235"]
[TimeControl "180+1"]
[EndTime "14:38:33 PDT"]
[Termination "zeitnot2006 won on time"]

1. e4 {[%clk 0:03:00.9]} 1... Nc6 {[%clk 0:03:00.2]} 2. Nf3 {[%clk 0:02:59.7]}
2... d6 {[%clk 0:03:00.1]} 3. d4 {[%clk 0:02:59.2]} 3... Nf6 {[%clk 0:03:00.2]}
4. Nc3 {[%clk 0:02:58.5]} 4... Bg4 {[%clk 0:03:00.2]} 5. Be3 {[%clk 0:02:55.2]}
5... a6 {[%clk 0:02:59.7]} 6. Be2 {[%clk 0:02:52.8]} 6... e5 {[%clk 0:02:59.7]}
7. d5 {[%clk 0:02:51.7]} 7... Ne7 {[%clk 0:02:59.4]} 8. Nd2 {[%clk 0:02:44.7]}
8... Bd7 {[%clk 0:02:58.8]} 9. a4 {[%clk 0:02:43]} 9... Ng6 {[%clk 0:02:58.6]}
10. h4 {[%clk 0:02:35.3]} 10... h6 {[%clk 0:02:49.7]} 11. g3 {[%clk 0:02:29.2]}
11... Be7 {[%clk 0:02:49.2]} 12. a5 {[%clk 0:02:24.1]} 12... Qc8 {[%clk
0:02:48.8]} 13. h5 {[%clk 0:02:18]} 13... Nf8 {[%clk 0:02:48.1]} 14. f4 {[%clk
0:02:17.5]} 14... Ng4 {[%clk 0:01:42.7]} 15. Bg1 {[%clk 0:02:02.5]} 15... Nh7
{[%clk 0:01:36.9]} 16. Nc4 {[%clk 0:01:51.2]} 16... O-O {[%clk 0:01:21.5]} 17.
f5 {[%clk 0:01:33.7]} 17... Ngf6 {[%clk 0:01:17.4]} 18. Be3 {[%clk 0:01:29.4]}
18... Qd8 {[%clk 0:01:12.7]} 19. Qd2 {[%clk 0:01:26.2]} 19... Ne8 {[%clk
0:01:12.1]} 20. Qd3 {[%clk 0:01:18.2]} 20... Bg5 {[%clk 0:01:12.5]} 21. Bf2
{[%clk 0:01:18.2]} 21... Nhf6 {[%clk 0:00:56.9]} 22. Kf1 {[%clk 0:01:16.6]}
22... c5 {[%clk 0:00:33.8]} 23. Nb6 {[%clk 0:01:10.7]} 23... Rb8 {[%clk
0:00:31.8]} 24. Nxd7 {[%clk 0:01:07.6]} 24... Nxd7 {[%clk 0:00:29.2]} 25. Kg2
{[%clk 0:01:05.2]} 25... Nef6 {[%clk 0:00:29.3]} 26. b3 {[%clk 0:00:58.9]} 26...
Kh8 {[%clk 0:00:17.7]} 27. Nd1 {[%clk 0:00:58.9]} 27... Qc7 {[%clk 0:00:18]} 28.
Nb2 {[%clk 0:00:59]} 28... b6 {[%clk 0:00:17.9]} 29. axb6 {[%clk 0:00:57.3]}
29... Rxb6 {[%clk 0:00:18.1]} 30. Nc4 {[%clk 0:00:48.9]} 30... Rb4 {[%clk
0:00:17.1]} 31. Rxa6 {[%clk 0:00:44.6]} 31... Nb6 {[%clk 0:00:16.5]} 32. Rxb6
{[%clk 0:00:31.2]} 32... Rxb6 {[%clk 0:00:16.1]} 33. Nxb6 {[%clk 0:00:32.1]}
33... Qxb6 {[%clk 0:00:16.3]} 34. Ra1 {[%clk 0:00:30.8]} 34... Qb4 {[%clk
0:00:16.2]} 35. Bf3 {[%clk 0:00:27.7]} 35... Rc8 {[%clk 0:00:13.1]} 36. Be1
{[%clk 0:00:20.6]} 36... Qb6 {[%clk 0:00:12.4]} 37. Qc4 {[%clk 0:00:17.3]} 37...
Rb8 {[%clk 0:00:11.7]} 38. Ra6 {[%clk 0:00:16.9]} 38... Qc7 {[%clk 0:00:12]} 39.
Ba5 {[%clk 0:00:14]} 39... Qd7 {[%clk 0:00:11.5]} 40. Bc3 {[%clk 0:00:12.2]}
40... Be3 {[%clk 0:00:11.8]} 41. Qa4 {[%clk 0:00:11.2]} 41... Qd8 {[%clk
0:00:09.9]} 42. Qc6 {[%clk 0:00:10.2]} 42... Bd4 {[%clk 0:00:09.6]} 43. Ba5
{[%clk 0:00:09.4]} 43... Qg8 {[%clk 0:00:07.6]} 44. Qxd6 {[%clk 0:00:08.2]}
44... Ra8 {[%clk 0:00:07.3]} 45. Rxa8 {[%clk 0:00:05.5]} 45... Qxa8 {[%clk
0:00:06.8]} 46. Qd8+ {[%clk 0:00:05.4]} 46... Qxd8 {[%clk 0:00:06.6]} 47. Bxd8
{[%clk 0:00:06.3]} 47... Nd7 {[%clk 0:00:06.7]} 48. Ba5 {[%clk 0:00:06.1]} 48...
Kg8 {[%clk 0:00:06.8]} 49. Bd2 {[%clk 0:00:06.7]} 49... Kf8 {[%clk 0:00:07]} 50.
c3 {[%clk 0:00:07.4]} 50... Nb6 {[%clk 0:00:04.5]} 51. cxd4 {[%clk 0:00:07.6]}
51... cxd4 {[%clk 0:00:05.1]} 52. Be2 {[%clk 0:00:07.8]} 52... Ke7 {[%clk
0:00:04.5]} 53. Bd3 {[%clk 0:00:08.2]} 53... Kd6 {[%clk 0:00:04.5]} 54. Kf3
{[%clk 0:00:08.9]} 54... Nd7 {[%clk 0:00:02.7]} 55. Ke2 {[%clk 0:00:09.8]} 55...
Kc7 {[%clk 0:00:03.1]} 56. Ba5+ {[%clk 0:00:09.3]} 56... Kb7 {[%clk 0:00:02.8]}
57. b4 {[%clk 0:00:08.1]} 57... Ka7 {[%clk 0:00:01.7]} 58. b5 {[%clk 0:00:07.9]}
58... Kb7 {[%clk 0:00:02]} 59. d6 {[%clk 0:00:08.2]} 59... Nc5 {[%clk
0:00:02.4]} 60. Bc4 {[%clk 0:00:07.5]} 60... Nxe4 {[%clk 0:00:01.8]} 61. Bd5+
{[%clk 0:00:07.7]} 61... Kc8 {[%clk 0:00:01.6]} 62. Bxe4 {[%clk 0:00:08.6]}
62... Kd7 {[%clk 0:00:02.3]} 63. b6 {[%clk 0:00:09.1]} 63... Kxd6 {[%clk
0:00:02.8]} 64. b7 {[%clk 0:00:10]} 64... d3+ {[%clk 0:00:01.9]} 65. Kd1 {[%clk
0:00:10]} 1-0

[Event "Late-Titled-Tuesday-Blitz-September-12-2023"]
[Site "Chess.com"]
[Date "2023.09.12"]
[Round "4"]
[White "Zkid"]
[Black "HansOnTwitch"]
[Result "1/2-1/2"]
[WhiteElo "2918"]
[BlackElo "3081"]
[TimeControl "180+1"]
[EndTime "14:38:39 PDT"]
[Termination "Game drawn by repetition"]

1. e4 {[%clk 0:03:00.9]} 1... c5 {[%clk 0:02:58]} 2. Nf3 {[%clk 0:03:01.1]} 2...
Nc6 {[%clk 0:02:57.7]} 3. Bb5 {[%clk 0:03:00.9]} 3... g6 {[%clk 0:02:57.3]} 4.
O-O {[%clk 0:03:01.2]} 4... Bg7 {[%clk 0:02:57.5]} 5. c3 {[%clk 0:03:01.8]} 5...
e5 {[%clk 0:02:53.9]} 6. Bxc6 {[%clk 0:02:57.1]} 6... dxc6 {[%clk 0:02:51.4]} 7.
d3 {[%clk 0:02:49.9]} 7... b6 {[%clk 0:02:39.8]} 8. Qe2 {[%clk 0:02:46.4]} 8...
Ba6 {[%clk 0:02:35.8]} 9. Rd1 {[%clk 0:02:42.6]} 9... Qd6 {[%clk 0:02:21.6]} 10.
c4 {[%clk 0:02:30.4]} 10... Nf6 {[%clk 0:02:19.6]} 11. Nc3 {[%clk 0:02:12.3]}
11... Bc8 {[%clk 0:02:09.9]} 12. h3 {[%clk 0:02:08.6]} 12... O-O {[%clk
0:02:08.5]} 13. a3 {[%clk 0:02:04.3]} 13... a5 {[%clk 0:02:07.4]} 14. Bg5 {[%clk
0:01:54]} 14... h6 {[%clk 0:02:04.8]} 15. Be3 {[%clk 0:01:49]} 15... Nh5 {[%clk
0:02:04.3]} 16. Qd2 {[%clk 0:01:47.3]} 16... Nf4 {[%clk 0:02:03.4]} 17. Ne2
{[%clk 0:01:30.7]} 17... Nxe2+ {[%clk 0:02:00]} 18. Qxe2 {[%clk 0:01:31.6]}
18... f5 {[%clk 0:01:59.5]} 19. exf5 {[%clk 0:01:16.5]} 19... gxf5 {[%clk
0:02:00.4]} 20. Bd2 {[%clk 0:01:13.1]} 20... Ra7 {[%clk 0:01:52.3]} 21. Bc3
{[%clk 0:01:08.6]} 21... Re7 {[%clk 0:01:51.2]} 22. Re1 {[%clk 0:01:05.5]} 22...
Rfe8 {[%clk 0:01:51.3]} 23. Nh4 {[%clk 0:00:52.1]} 23... Qf6 {[%clk 0:01:42.5]}
24. Qh5 {[%clk 0:00:50]} 24... Qf7 {[%clk 0:01:38.2]} 25. Qxf7+ {[%clk
0:00:48.4]} 25... Kxf7 {[%clk 0:01:37.5]} 26. Re3 {[%clk 0:00:40.4]} 26... Bf6
{[%clk 0:01:28.8]} 27. Nf3 {[%clk 0:00:39.1]} 27... f4 {[%clk 0:01:12.5]} 28.
Re2 {[%clk 0:00:38.6]} 28... e4 {[%clk 0:01:11.6]} 29. Bxf6 {[%clk 0:00:33.2]}
29... Kxf6 {[%clk 0:01:12.5]} 30. dxe4 {[%clk 0:00:20]} 30... Rxe4 {[%clk
0:01:13.4]} 31. Rxe4 {[%clk 0:00:19.5]} 31... Rxe4 {[%clk 0:01:14.3]} 32. Rc1
{[%clk 0:00:18.8]} 32... Be6 {[%clk 0:01:06.1]} 33. b3 {[%clk 0:00:19.2]} 33...
Re2 {[%clk 0:01:01]} 34. a4 {[%clk 0:00:17.8]} 34... Rb2 {[%clk 0:00:58.5]} 35.
Rc3 {[%clk 0:00:17.7]} 35... Bf5 {[%clk 0:00:58.9]} 36. Ne1 {[%clk 0:00:17.5]}
36... Be4 {[%clk 0:00:50]} 37. f3 {[%clk 0:00:16.6]} 37... Bf5 {[%clk
0:00:43.2]} 38. Nd3 {[%clk 0:00:16.4]} 38... Bxd3 {[%clk 0:00:29.4]} 39. Rxd3
{[%clk 0:00:17.3]} 39... Ke5 {[%clk 0:00:29.1]} 40. h4 {[%clk 0:00:17.1]} 40...
h5 {[%clk 0:00:24.6]} 41. Kh2 {[%clk 0:00:17.3]} 41... Re2 {[%clk 0:00:23.4]}
42. Kh3 {[%clk 0:00:12.4]} 42... Re3 {[%clk 0:00:15.3]} 43. Rd8 {[%clk
0:00:12.5]} 43... Rxb3 {[%clk 0:00:15.3]} 44. Rh8 {[%clk 0:00:12.9]} 44... Kd4
{[%clk 0:00:10.9]} 45. Rxh5 {[%clk 0:00:13.8]} 45... Kxc4 {[%clk 0:00:11.4]} 46.
Rf5 {[%clk 0:00:13.9]} 46... b5 {[%clk 0:00:11.5]} 47. Rxf4+ {[%clk 0:00:13.4]}
47... Kc3 {[%clk 0:00:11.1]} 48. h5 {[%clk 0:00:13.8]} 48... Rb1 {[%clk
0:00:10.2]} 49. Rh4 {[%clk 0:00:11.7]} 49... Rd1 {[%clk 0:00:06.3]} 50. h6
{[%clk 0:00:12.6]} 50... Rd8 {[%clk 0:00:05.9]} 51. h7 {[%clk 0:00:12.9]} 51...
Rh8 {[%clk 0:00:06.4]} 52. g4 {[%clk 0:00:11.3]} 52... b4 {[%clk 0:00:06.5]} 53.
g5 {[%clk 0:00:12]} 53... b3 {[%clk 0:00:07.1]} 54. g6 {[%clk 0:00:12.6]} 54...
b2 {[%clk 0:00:07.5]} 55. g7 {[%clk 0:00:13.2]} 55... Rxh7 {[%clk 0:00:06.6]}
56. g8=Q {[%clk 0:00:10.1]} 56... Rxh4+ {[%clk 0:00:05.6]} 57. Kxh4 {[%clk
0:00:11]} 57... b1=Q {[%clk 0:00:05.4]} 58. Qg7+ {[%clk 0:00:11.6]} 58... Kd2
{[%clk 0:00:02.5]} 59. Qg5+ {[%clk 0:00:11.1]} 59... Ke2 {[%clk 0:00:03.1]} 60.
Qxc5 {[%clk 0:00:08]} 60... Qb4+ {[%clk 0:00:02.8]} 61. Qxb4 {[%clk 0:00:08.4]}
61... axb4 {[%clk 0:00:03.7]} 62. a5 {[%clk 0:00:08.8]} 62... b3 {[%clk
0:00:04.6]} 63. a6 {[%clk 0:00:09.1]} 63... b2 {[%clk 0:00:05.5]} 64. a7 {[%clk
0:00:09.7]} 64... b1=Q {[%clk 0:00:06.4]} 65. a8=Q {[%clk 0:00:10.6]} 65... Qh7+
{[%clk 0:00:06.4]} 66. Kg5 {[%clk 0:00:09.9]} 66... Qg7+ {[%clk 0:00:06.9]} 67.
Kf5 {[%clk 0:00:09.5]} 67... Qf7+ {[%clk 0:00:07.5]} 68. Ke5 {[%clk 0:00:09.3]}
68... Qd5+ {[%clk 0:00:08]} 69. Kf6 {[%clk 0:00:09.6]} 69... Qxf3+ {[%clk
0:00:07.5]} 70. Ke7 {[%clk 0:00:09.4]} 70... Qd5 {[%clk 0:00:07.2]} 71. Qa1
{[%clk 0:00:07.6]} 71... c5 {[%clk 0:00:06.7]} 72. Qb2+ {[%clk 0:00:07.3]} 72...
Kf3 {[%clk 0:00:06.8]} 73. Qc3+ {[%clk 0:00:07]} 73... Kf4 {[%clk 0:00:05.3]}
74. Qc1+ {[%clk 0:00:07.3]} 74... Kf5 {[%clk 0:00:03.3]} 75. Qf1+ {[%clk
0:00:07.1]} 75... Ke4 {[%clk 0:00:03.7]} 76. Qg2+ {[%clk 0:00:07.2]} 76... Kd4
{[%clk 0:00:03.2]} 77. Qd2+ {[%clk 0:00:07.5]} 77... Ke5 {[%clk 0:00:03.3]} 78.
Qg5+ {[%clk 0:00:07.7]} 78... Kd4 {[%clk 0:00:03.9]} 79. Qd2+ {[%clk 0:00:08.1]}
79... Kc4 {[%clk 0:00:04.3]} 80. Qa2+ {[%clk 0:00:08.5]} 80... Kd4 {[%clk
0:00:05]} 81. Qd2+ {[%clk 0:00:09.1]} 1/2-1/2

[Event "Late-Titled-Tuesday-Blitz-September-12-2023"]
[Site "Chess.com"]
[Date "2023.09.12"]
[Round "4"]
[White "vladislavkovalev"]
[Black "Firouzja2003"]
[Result "1/2-1/2"]
[WhiteElo "2904"]
[BlackElo "3078"]
[TimeControl "180+1"]
[EndTime "14:39:09 PDT"]
[Termination "Game drawn by stalemate"]

1. e4 {[%clk 0:03:00.9]} 1... c6 {[%clk 0:02:59.7]} 2. d4 {[%clk 0:03:01.5]}
2... d5 {[%clk 0:03:00]} 3. exd5 {[%clk 0:03:02.4]} 3... cxd5 {[%clk 0:03:00.8]}
4. Bd3 {[%clk 0:03:03.2]} 4... Nf6 {[%clk 0:03:00.4]} 5. h3 {[%clk 0:03:01.4]}
5... Nc6 {[%clk 0:03:00.1]} 6. c3 {[%clk 0:03:01.9]} 6... e5 {[%clk 0:02:59.9]}
7. dxe5 {[%clk 0:03:02.8]} 7... Nxe5 {[%clk 0:03:00.8]} 8. Nf3 {[%clk
0:03:03.5]} 8... Nxd3+ {[%clk 0:03:00.8]} 9. Qxd3 {[%clk 0:03:04.4]} 9... Bd6
{[%clk 0:03:01.3]} 10. O-O {[%clk 0:03:04.9]} 10... O-O {[%clk 0:03:01.6]} 11.
Bg5 {[%clk 0:03:01.8]} 11... h6 {[%clk 0:03:01.8]} 12. Bh4 {[%clk 0:02:49.5]}
12... g5 {[%clk 0:03:02]} 13. Bg3 {[%clk 0:02:50]} 13... Bxg3 {[%clk 0:03:02.3]}
14. fxg3 {[%clk 0:02:50.9]} 14... Ne4 {[%clk 0:03:02.5]} 15. Nd4 {[%clk
0:02:48]} 15... Qb6 {[%clk 0:02:57.2]} 16. Nd2 {[%clk 0:02:34.7]} 16... Qxb2
{[%clk 0:02:45]} 17. Nxe4 {[%clk 0:02:34.6]} 17... dxe4 {[%clk 0:02:45.3]} 18.
Qxe4 {[%clk 0:02:35.5]} 18... Qxc3 {[%clk 0:02:45.4]} 19. g4 {[%clk 0:02:15.6]}
19... Bd7 {[%clk 0:02:37.6]} 20. Rac1 {[%clk 0:02:05.6]} 20... Qb4 {[%clk
0:02:33.5]} 21. Rf6 {[%clk 0:01:20.5]} 21... Rfe8 {[%clk 0:01:25.7]} 22. Qd5
{[%clk 0:01:10.8]} 22... Be6 {[%clk 0:01:09.4]} 23. Nxe6 {[%clk 0:01:01.6]}
23... Qb6+ {[%clk 0:01:09.3]} 24. Kh2 {[%clk 0:00:41.7]} 24... Rxe6 {[%clk
0:01:06.7]} 25. Rxe6 {[%clk 0:00:42.2]} 25... fxe6 {[%clk 0:00:36.7]} 26. Qd3
{[%clk 0:00:39]} 26... Qb2 {[%clk 0:00:04.7]} 27. Qg6+ {[%clk 0:00:31.6]} 27...
Qg7 {[%clk 0:00:04.7]} 28. Qxe6+ {[%clk 0:00:32.3]} 28... Kh8 {[%clk 0:00:05.2]}
29. Rd1 {[%clk 0:00:21.2]} 29... Rf8 {[%clk 0:00:03.6]} 30. Rd6 {[%clk
0:00:15.5]} 30... b6 {[%clk 0:00:03.2]} 31. Rd7 {[%clk 0:00:07]} 31... Qf6
{[%clk 0:00:03.1]} 32. Qe4 {[%clk 0:00:01.9]} 32... Qf4+ {[%clk 0:00:03]} 33.
Qxf4 {[%clk 0:00:02.5]} 33... Rxf4 {[%clk 0:00:03.4]} 34. Rxa7 {[%clk
0:00:03.3]} 34... Rb4 {[%clk 0:00:02.9]} 35. Kg3 {[%clk 0:00:02.8]} 35... Kg8
{[%clk 0:00:03.1]} 36. Kf3 {[%clk 0:00:03.5]} 36... Rf4+ {[%clk 0:00:03.2]} 37.
Ke3 {[%clk 0:00:03.6]} 37... Rb4 {[%clk 0:00:03.9]} 38. g3 {[%clk 0:00:04.2]}
38... Rb1 {[%clk 0:00:03.8]} 39. h4 {[%clk 0:00:03.6]} 39... Rg1 {[%clk
0:00:03.8]} 40. Kf3 {[%clk 0:00:03.8]} 40... Rf1+ {[%clk 0:00:03.8]} 41. Ke4
{[%clk 0:00:04.5]} 41... Rf6 {[%clk 0:00:02.5]} 42. h5 {[%clk 0:00:04.9]} 42...
Rf1 {[%clk 0:00:02.7]} 43. a4 {[%clk 0:00:05]} 43... Rc1 {[%clk 0:00:02.7]} 44.
Kf5 {[%clk 0:00:05.2]} 44... Rc5+ {[%clk 0:00:03]} 45. Kf6 {[%clk 0:00:05.4]}
45... Rc6+ {[%clk 0:00:03.5]} 46. Ke5 {[%clk 0:00:06.1]} 46... Rc4 {[%clk
0:00:03.1]} 47. Kf5 {[%clk 0:00:05.4]} 47... Rc5+ {[%clk 0:00:03.5]} 48. Ke4
{[%clk 0:00:06.2]} 48... Rc4+ {[%clk 0:00:04]} 49. Kf3 {[%clk 0:00:07]} 49...
Rc3+ {[%clk 0:00:04.4]} 50. Kf2 {[%clk 0:00:06.2]} 50... Rc2+ {[%clk 0:00:04.3]}
51. Ke3 {[%clk 0:00:06.8]} 51... Rc3+ {[%clk 0:00:04.9]} 52. Ke4 {[%clk
0:00:07.2]} 52... Rc4+ {[%clk 0:00:03]} 53. Kd5 {[%clk 0:00:05.2]} 53... Rxg4
{[%clk 0:00:03.2]} 54. Kc6 {[%clk 0:00:06.1]} 54... Rxg3 {[%clk 0:00:03.3]} 55.
Kxb6 {[%clk 0:00:06.5]} 55... Rb3+ {[%clk 0:00:02.5]} 56. Kc5 {[%clk 0:00:06.7]}
56... g4 {[%clk 0:00:02.7]} 57. Ra6 {[%clk 0:00:07.3]} 57... Kh7 {[%clk
0:00:02.5]} 58. a5 {[%clk 0:00:06.8]} 58... g3 {[%clk 0:00:02.5]} 59. Rg6 {[%clk
0:00:07.6]} 59... Ra3 {[%clk 0:00:02.7]} 60. Kb4 {[%clk 0:00:08.2]} 60... Rf3
{[%clk 0:00:01.9]} 61. a6 {[%clk 0:00:08.3]} 61... Rf4+ {[%clk 0:00:02.5]} 62.
Kb5 {[%clk 0:00:05.4]} 62... Rf5+ {[%clk 0:00:02.9]} 63. Kb6 {[%clk 0:00:05.9]}
63... Rg5 {[%clk 0:00:03.1]} 64. a7 {[%clk 0:00:03.4]} 64... g2 {[%clk
0:00:03.6]} 65. Rxg5 {[%clk 0:00:04.1]} 65... hxg5 {[%clk 0:00:04.3]} 66. a8=Q
{[%clk 0:00:04.9]} 66... g1=Q+ {[%clk 0:00:04.6]} 67. Kb5 {[%clk 0:00:04.8]}
67... Qb1+ {[%clk 0:00:03.9]} 68. Kc4 {[%clk 0:00:05]} 68... Qc2+ {[%clk
0:00:04.1]} 69. Kd4 {[%clk 0:00:05.3]} 69... Qd1+ {[%clk 0:00:04.6]} 70. Ke3
{[%clk 0:00:05.2]} 70... Qxh5 {[%clk 0:00:04.3]} 71. Kf2 {[%clk 0:00:05.6]}
71... Qh4+ {[%clk 0:00:04.1]} 72. Kg2 {[%clk 0:00:05.8]} 72... Qg4+ {[%clk
0:00:04.7]} 73. Kf2 {[%clk 0:00:06.3]} 73... Qf5+ {[%clk 0:00:04.8]} 74. Kg3
{[%clk 0:00:06.3]} 74... Qf4+ {[%clk 0:00:04.8]} 75. Kg2 {[%clk 0:00:07]} 75...
Qg4+ {[%clk 0:00:04.2]} 76. Kf2 {[%clk 0:00:07]} 76... Qd4+ {[%clk 0:00:04.9]}
77. Kg3 {[%clk 0:00:06.9]} 77... Qe5+ {[%clk 0:00:05.1]} 78. Kg2 {[%clk
0:00:06.3]} 78... Kg6 {[%clk 0:00:05.5]} 79. Qc6+ {[%clk 0:00:06.2]} 79... Kf5
{[%clk 0:00:05.1]} 80. Qf3+ {[%clk 0:00:06.9]} 80... Qf4 {[%clk 0:00:05.2]} 81.
Qxf4+ {[%clk 0:00:04.8]} 81... Kxf4 {[%clk 0:00:04.7]} 82. Kf2 {[%clk
0:00:05.5]} 82... Kg4 {[%clk 0:00:05.3]} 83. Kg2 {[%clk 0:00:06.3]} 83... Kh4
{[%clk 0:00:06.1]} 84. Kh2 {[%clk 0:00:06.9]} 84... Kg4 {[%clk 0:00:06.9]} 85.
Kg2 {[%clk 0:00:07.6]} 85... Kf4 {[%clk 0:00:07.8]} 86. Kf2 {[%clk 0:00:08.2]}
86... g4 {[%clk 0:00:08.4]} 87. Kg2 {[%clk 0:00:08.9]} 87... g3 {[%clk
0:00:09.3]} 88. Kg1 {[%clk 0:00:09.5]} 88... Kg5 {[%clk 0:00:09.9]} 89. Kg2
{[%clk 0:00:10.1]} 89... Kg4 {[%clk 0:00:10.8]} 90. Kg1 {[%clk 0:00:10.9]} 90...
Kh3 {[%clk 0:00:11.7]} 91. Kh1 {[%clk 0:00:11.4]} 91... Kh4 {[%clk 0:00:12.5]}
92. Kg2 {[%clk 0:00:11.9]} 92... Kg4 {[%clk 0:00:13.4]} 93. Kg1 {[%clk
0:00:12.6]} 93... Kf3 {[%clk 0:00:14.3]} 94. Kf1 {[%clk 0:00:13]} 94... g2+
{[%clk 0:00:14]} 95. Kg1 {[%clk 0:00:13.3]} 95... Kg3 {[%clk 0:00:14.9]} 1/2-1/2

[Event "Late-Titled-Tuesday-Blitz-September-12-2023"]
[Site "Chess.com"]
[Date "2023.09.12"]
[Round "4"]
[White "GMBenjaminBok"]
[Black "temus_galaktionov"]
[Result "0-1"]
[WhiteElo "3018"]
[BlackElo "2845"]
[TimeControl "180+1"]
[EndTime "14:39:09 PDT"]
[Termination "temus_galaktionov won on time"]

1. d4 {[%clk 0:03:00.9]} 1... c6 {[%clk 0:03:00.9]} 2. c4 {[%clk 0:02:56.8]}
2... g6 {[%clk 0:03:01.8]} 3. Nf3 {[%clk 0:02:50.5]} 3... d6 {[%clk 0:03:02.7]}
4. Nc3 {[%clk 0:02:49.5]} 4... Bg7 {[%clk 0:02:55.2]} 5. g3 {[%clk 0:02:49.6]}
5... Nd7 {[%clk 0:02:54.3]} 6. Bg2 {[%clk 0:02:49.6]} 6... Ngf6 {[%clk
0:02:54.5]} 7. O-O {[%clk 0:02:49.7]} 7... O-O {[%clk 0:02:55.1]} 8. e4 {[%clk
0:02:49.6]} 8... e5 {[%clk 0:02:55.2]} 9. Be3 {[%clk 0:02:49.7]} 9... a5 {[%clk
0:02:54.3]} 10. h3 {[%clk 0:02:49.2]} 10... exd4 {[%clk 0:02:54.4]} 11. Nxd4
{[%clk 0:02:50.1]} 11... Nc5 {[%clk 0:02:54.4]} 12. Qc2 {[%clk 0:02:50]} 12...
a4 {[%clk 0:02:54.5]} 13. Rad1 {[%clk 0:02:44]} 13... Qa5 {[%clk 0:02:53.4]} 14.
Rfe1 {[%clk 0:02:39.3]} 14... Re8 {[%clk 0:02:52.9]} 15. Bf4 {[%clk 0:02:24.7]}
15... Rd8 {[%clk 0:02:50.3]} 16. Nf3 {[%clk 0:02:02.6]} 16... Ne8 {[%clk
0:02:48.4]} 17. Bg5 {[%clk 0:01:57]} 17... Rd7 {[%clk 0:02:46.3]} 18. a3 {[%clk
0:01:44.1]} 18... Qa6 {[%clk 0:02:36.3]} 19. Bf1 {[%clk 0:01:34]} 19... h6
{[%clk 0:02:28.7]} 20. Bf4 {[%clk 0:01:31.9]} 20... Kh7 {[%clk 0:02:28.1]} 21.
h4 {[%clk 0:01:26.8]} 21... Kg8 {[%clk 0:02:23.6]} 22. Qd2 {[%clk 0:01:23]}
22... h5 {[%clk 0:02:19.8]} 23. Bh6 {[%clk 0:01:05.1]} 23... Qb6 {[%clk
0:02:11.8]} 24. Bxg7 {[%clk 0:01:05]} 24... Kxg7 {[%clk 0:02:09.3]} 25. Re2
{[%clk 0:00:59.8]} 25... Rd8 {[%clk 0:02:01]} 26. Qd4+ {[%clk 0:00:49.1]} 26...
Kg8 {[%clk 0:01:59.2]} 27. Red2 {[%clk 0:00:45.6]} 27... Bg4 {[%clk 0:01:57.1]}
28. Be2 {[%clk 0:00:46]} 28... Qc7 {[%clk 0:01:55.8]} 29. Qe3 {[%clk 0:00:42.4]}
29... Nb3 {[%clk 0:01:55.6]} 30. Rd3 {[%clk 0:00:40.7]} 30... Nc5 {[%clk
0:01:55.7]} 31. R3d2 {[%clk 0:00:40.3]} 31... Nb3 {[%clk 0:01:55.7]} 32. Rc2
{[%clk 0:00:40.6]} 32... Nc5 {[%clk 0:01:52.8]} 33. Ng5 {[%clk 0:00:38.3]} 33...
Nf6 {[%clk 0:01:48.9]} 34. Qf4 {[%clk 0:00:35.6]} 34... Qe7 {[%clk 0:01:46.7]}
35. Bxg4 {[%clk 0:00:32.1]} 35... Nxg4 {[%clk 0:01:38.8]} 36. Nf3 {[%clk
0:00:22.9]} 36... Ne5 {[%clk 0:01:35.6]} 37. Nxe5 {[%clk 0:00:21.3]} 37... dxe5
{[%clk 0:01:36.5]} 38. Qe3 {[%clk 0:00:19.6]} 38... Rxd1+ {[%clk 0:01:33.8]} 39.
Nxd1 {[%clk 0:00:20.5]} 39... Rd8 {[%clk 0:01:32.3]} 40. Nc3 {[%clk 0:00:17.3]}
40... Rd4 {[%clk 0:01:31]} 41. Rd2 {[%clk 0:00:11.5]} 41... Qd6 {[%clk
0:01:29.2]} 42. Nb1 {[%clk 0:00:07.4]} 42... Nb3 {[%clk 0:01:13.7]} 43. Rxd4
{[%clk 0:00:06.3]} 43... exd4 {[%clk 0:01:14.1]} 44. Qf4 {[%clk 0:00:02.9]}
44... Qc5 {[%clk 0:01:04]} 45. Nd2 {[%clk 0:00:02.2]} 45... Nxd2 {[%clk
0:01:03.3]} 46. Qxd2 {[%clk 0:00:03.1]} 46... Qxc4 {[%clk 0:01:03.7]} 47. Qg5
{[%clk 0:00:03.1]} 47... d3 {[%clk 0:01:00.2]} 48. Qd8+ {[%clk 0:00:03.2]} 48...
Kh7 {[%clk 0:00:58.2]} 49. e5 {[%clk 0:00:03.8]} 49... b5 {[%clk 0:00:46.6]} 50.
Qd7 {[%clk 0:00:03.3]} 50... Kg7 {[%clk 0:00:42.5]} 51. e6 {[%clk 0:00:03.7]}
51... Qxe6 {[%clk 0:00:40.6]} 52. Qxd3 {[%clk 0:00:04.3]} 52... Qe5 {[%clk
0:00:39.6]} 53. Qc2 {[%clk 0:00:04.2]} 53... Qd5 {[%clk 0:00:39.2]} 54. Qc3+
{[%clk 0:00:03.9]} 54... Kf8 {[%clk 0:00:39.7]} 55. Qf6 {[%clk 0:00:04]} 55...
Ke8 {[%clk 0:00:38.2]} 56. Qc3 {[%clk 0:00:02.5]} 56... Ke7 {[%clk 0:00:37.9]}
57. f3 {[%clk 0:00:02.2]} 57... Kd6 {[%clk 0:00:35.9]} 58. Kg2 {[%clk
0:00:02.7]} 58... Qe5 {[%clk 0:00:33.5]} 59. Qd3+ {[%clk 0:00:02.7]} 59... Kc7
{[%clk 0:00:33.5]} 60. Qc2 {[%clk 0:00:02.9]} 60... c5 {[%clk 0:00:32.9]} 61.
Qd2 {[%clk 0:00:03.2]} 61... Kc6 {[%clk 0:00:31.2]} 62. Kh2 {[%clk 0:00:03.3]}
62... Qd4 {[%clk 0:00:28]} 63. Qe2 {[%clk 0:00:03.8]} 63... Kb6 {[%clk
0:00:24.9]} 64. Kh3 {[%clk 0:00:04.3]} 64... Qd7+ {[%clk 0:00:23.2]} 65. Kh2
{[%clk 0:00:04.2]} 65... Qe6 {[%clk 0:00:21.1]} 66. Qd2 {[%clk 0:00:03.9]} 66...
Kc6 {[%clk 0:00:19.5]} 67. Kg2 {[%clk 0:00:02.4]} 67... Qd5 {[%clk 0:00:19.2]}
68. Qe2 {[%clk 0:00:02.7]} 68... Kb6 {[%clk 0:00:19.5]} 69. Qe1 {[%clk
0:00:02.9]} 69... Qd4 {[%clk 0:00:18.2]} 70. Qe2 {[%clk 0:00:03.3]} 70... b4
{[%clk 0:00:18.3]} 71. Kh3 {[%clk 0:00:03]} 71... Qd7+ {[%clk 0:00:16.3]} 72. g4
{[%clk 0:00:03.1]} 72... bxa3 {[%clk 0:00:14.6]} 73. bxa3 {[%clk 0:00:03.7]}
73... Qe6 {[%clk 0:00:14.6]} 74. Qb2+ {[%clk 0:00:03.1]} 74... Qb3 {[%clk
0:00:14.3]} 75. Qf6+ {[%clk 0:00:03.4]} 75... Kb5 {[%clk 0:00:14.6]} 76. gxh5
{[%clk 0:00:04]} 76... gxh5 {[%clk 0:00:14.8]} 77. Qf5 {[%clk 0:00:04.1]} 77...
Qxa3 {[%clk 0:00:14.5]} 78. Qxh5 {[%clk 0:00:04.4]} 78... Qb3 {[%clk 0:00:11.2]}
79. Qf5 {[%clk 0:00:03.5]} 79... a3 {[%clk 0:00:11.3]} 80. h5 {[%clk 0:00:03.7]}
80... a2 {[%clk 0:00:11.6]} 81. Qf6 {[%clk 0:00:03.6]} 81... Qb1 {[%clk
0:00:09]} 82. Qxf7 {[%clk 0:00:01.9]} 82... a1=Q {[%clk 0:00:09.9]} 83. Qb7+
{[%clk 0:00:02]} 83... Kc4 {[%clk 0:00:10.1]} 84. Qf7+ {[%clk 0:00:02.1]} 84...
Kd3 {[%clk 0:00:10.5]} 85. Qg6+ {[%clk 0:00:02]} 85... Kd2 {[%clk 0:00:10.5]}
86. Qg2+ {[%clk 0:00:01.9]} 86... Kc3 {[%clk 0:00:10.6]} 87. Qg7+ {[%clk
0:00:02]} 87... Kb3 {[%clk 0:00:11]} 88. Qb7+ {[%clk 0:00:01.4]} 88... Kc2
{[%clk 0:00:10.2]} 89. Qe4+ {[%clk 0:00:01.5]} 89... Kd2 {[%clk 0:00:10.5]} 90.
Qf4+ {[%clk 0:00:02.1]} 90... Ke2 {[%clk 0:00:10.7]} 91. Qh2+ {[%clk 0:00:02.2]}
91... Ke3 {[%clk 0:00:11.2]} 0-1